Cogmind - Beta 15 @@@ ROGUE MODE // 2025.07.03 @ 08:40:42 Player: beans Result: Destroyed by JX-8SL(R) with Subdweller Machine Gun Performance ------------- Evolutions (0) 0 Regions Visited (2) 400 Robots Destroyed (24) 120 Value Destroyed (498) 498 Prototype IDs (2) 40 Alien Tech Used (0) 0 Bonus (0) 0 TOTAL SCORE: 1058 Bonus ------- None Cogmind --------- Core Integrity 0/250 Matter 259/300 Energy 83/200 System Corruption 1% Temperature Cool (8) Movement Core (250) Ox4 Location -10/Subcaves Parts ------- > --- POWER (1) -------- Subdweller Power Source > --- PROPULSION (2) --- (None) > --- UTILITY (2) ------ Visual Processing Unit Recalibrator > --- WEAPON (2) ------- Small Laser Subdweller Beam Cannon > --- INVENTORY (5) ---- Assault Rifle Datajack Flamer Peak State ------------ > --- POWER ------------ Ion Engine > --- PROPULSION ------- Light Treads > --- UTILITY ---------- Visual Processing Unit Recalibrator > --- WEAPON ----------- Spread Laser Spread Laser > --- INVENTORY -------- ECM Suite Small Laser Assault Rifle Datajack [Rating: 12] Favorites ----------- Power Ion Engine Engine Ion Engine Propulsion Light Treads Treads Light Treads Utility Visual Processing Unit Device Recalibrator Processor Visual Processing Unit Weapon Spread Laser Energy Gun Spread Laser Energy Cannon Subdweller Beam Cannon Ballistic Gun Assault Rifle Special Melee Weapon Datajack Build | -11 -10 -10 ------- Run | Yrd Mat Sub Slots Evolved . | . . . Power . | . . . Propulsion . | . . . Utility . | . . . Weapon . | . . . Parts Attached 13 | 4 7 2 Power 2 | 1 . 1 Engine 2 | 1 . 1 Core . | . . . Reactor . | . . . Propulsion 2 | 2 . . Treads 2 | 2 . . Leg . | . . . Wheel . | . . . Hover . | . . . Flight . | . . . Utility 3 | . 3 . Device 2 | . 2 . Storage . | . . . Processor 1 | . 1 . Hackware . | . . . Protection . | . . . Artifact . | . . . Weapon 6 | 1 4 1 Energy Gun 3 | 1 2 . Energy Cannon 1 | . . 1 Ballistic Gun 1 | . 1 . Ballistic Cannon . | . . . Launcher . | . . . Special Weapon . | . . . Impact Weapon . | . . . Slashing Weapon . | . . . Piercing Weapon . | . . . Special Melee Weapon 1 | . 1 . Unidentified Prototypes . | . . . Parts Lost 5 | . 2 3 Power 1 | . 1 . Propulsion 2 | . 1 1 Utility . | . . . Weapon 2 | . . 2 Highest Loss Streak 2 | . 1 2 To Critical Strikes . | . . . Average Backups 3 | . 3 3 Power . | . . . Propulsion . | . . . Utility . | . . . Weapon 1 | . 1 1 Tool/Special . | . . . Unused Backups 1 | . . 1 Power . | . . . Propulsion . | . . . Utility . | . . . Weapon 1 | . . 1 Tool/Special . | . . . Average Slot Usage (%) 76 | . 80 68 Engine 11 | . 10 13 Treads 12 | . 18 . Device 12 | . 11 14 Processor 12 | . 11 14 Energy Gun 22 | . 26 14 Ballistic Gun 3 | . . 7 Peak Build Rating 12 | 4 12 12 Average Rating 10 | 2 10 10 On Entrance 5 | . 4 11 Naked Turns . | . . . Heaviest Build 17 | 6 13 17 Greatest Support 40 | 40 40 20 Greatest Overweight (x) 5 | . . 5 Average Overweight (x) . | . . 3 Largest Inventory Capacity 5 | 5 5 5 Average Capacity 5 | 5 5 5 Most Carried 4 | 2 4 4 Average Carried 3 | . 3 3 Final Capacity 5 | 5 5 5 Final Carried 4 | 1 4 3 Class Distribution -------------------- 100% | Mutant Dominant Class ---------------- Mutant | -10/Materials Mutant | -10/Subcaves Resources | -11 -10 -10 ----------- Run | Yrd Mat Sub Matter Collected 424 | 179 191 54 Remotely . | . . . Salvage Created 579 | . 464 115 Parts 42 | . 37 5 Haulers Intercepted 2 | . 2 . Recyclers Shooed 1 | . 1 . Parts Field Recycled . | . . . Retrieved Matter . | . . . Parts Self-Destructed 8 | . . 8 Prevented . | . . . Kills | -11 -10 -10 ------- Run | Yrd Mat Sub Combat Hostiles Destroyed 14 | . 11 3 Guns 13 | . 11 2 Cannons 1 | . . 1 Classes Destroyed 9 | . 8 1 Worker 3 | . 3 . Builder 1 | . 1 . Tunneler 1 | . 1 . Hauler 2 | . 2 . Mechanic 1 | . 1 . Watcher 2 | . 2 . Swarmer 4 | . 4 . Grunt 7 | . 7 . Subdweller 3 | . . 3 Best Kill Streak 3 | . 3 2 Combat Bots Only 2 | . 2 2 Max Kills in Single Turn 2 | . 2 1 Gunslinging 1 | . 1 . Exploded . | . . . Melee . | . . . Uniques/NPCs Destroyed . | . . . Combat | -11 -10 -10 -------- Run | Yrd Mat Sub Hostile Shots Fired 97 | . 72 25 Missed 32 | . 24 8 Hits 65 | . 48 17 Projectile 65 | . 48 17 Critical Strikes 1 | . 1 . Damage Taken 904 | . 546 358 Core 255 | . 77 178 Absorbed by Shields . | . . . Core Remaining (%) 100 | 100 . . Volleys Fired 72 | . 48 24 Largest 2 | . 2 2 Hottest 145 | . 130 145 Shots Fired 132 | . 93 39 Gun 122 | . 93 29 Cannon 10 | . . 10 Launcher . | . . . Special . | . . . Kinetic 16 | . 8 8 Thermal 116 | . 85 31 Explosive . | . . . Electromagnetic . | . . . Robot Hit Streak 12 | . 12 7 Robot Miss Streak 13 | . 13 4 Penetration Max . | . . . Secondary Targets 3 | . 2 1 Max Gunslinging Chain 1 | . 1 1 Shots Hit Robots 100 | . 77 23 Core Hits 93 | . 77 16 Critical Kills . | . . . Critical Parts Destroyed . | . . . Critical Strikes . | . . . Melee Attacks 12 | . 10 2 Impact . | . . . Slashing . | . . . Piercing . | . . . Sneak Attacks 7 | . 6 1 Combat Hostiles . | . . . Follow-up Attacks . | . . . Damage Inflicted 1158 | . 833 325 Guns 1045 | . 832 213 Cannons 112 | . . 112 Explosions . | . . . Melee . | . . . Ramming 1 | . 1 . Kinetic 97 | . 73 24 Thermal 1060 | . 759 301 Explosive . | . . . Electromagnetic . | . . . Impact . | . . . Slashing . | . . . Piercing . | . . . Highest Corruption 1 | . 1 1 Average Corruption 1 | . 1 1 Corruption Purged . | . . . Corruption Blocked . | . . . Effects 15 | . 9 6 Message Errors 5 | . 4 1 Matter Fused 7 | . 3 4 Heat Flow Errors 1 | . 1 . Data Loss (minor) 1 | . 1 . Alerts 1 | . . 1 Overload Shots . | . . . Overflow Damage . | . . . Projectiles . | . . . Explosions . | . . . Melee . | . . . Knockbacks . | . . . Impact . | . . . Kinetic . | . . . Secondary . | . . . Self-Inflicted Damage . | . . . Shots . | . . . Rammed 1 | . 1 . Targets Rammed 1 | . 1 . Kicked . | . . . Crushed . | . . . Highest Temperature 256 | . 256 48 Average Temperature 72 | . 76 29 Received Heat Transfer 252 | . 234 18 Siege Activations . | . . . Martial Activations . | . . . Shielding Activations . | . . . Robots Disrupted . | . . . Combat Hostiles . | . . . Robots Corrupted . | . . . Combat Hostiles . | . . . Parts Fried . | . . . Impact Corruptions . | . . . Robots Melted . | . . . Combat Hostiles . | . . . Parts Melted 1 | . . 1 Heat Transferred 1443 | . 1055 388 Parts Sabotaged . | . . . Parts Stolen . | . . . Parts Stripped . | . . . Power Chain Reactions . | . . . Alert | -11 -10 -10 ------- Run | Yrd Mat Sub Maximum Alert Level . | . . . Low Security (%) 100 | 100 100 . Level 1 . | . . . Level 2 . | . . . Level 3 . | . . . Level 4 . | . . . Level 5 . | . . . High Security . | . . . Max Security . | . . . Peak Influence 100 | . 100 . Initial . | . . . Average 16 | . 17 . Influence Increases 343 | . 343 . Destroy 0b10 Robot/C 220 | . 220 . Destroy 0b10 Robot/NC 50 | . 50 . Destroy Leader 58 | . 58 . Disable Machine 15 | . 15 . Influence Decreases 343 | . 343 . Time Decay 323 | . 323 . Lost Part 20 | . 20 . Squads Dispatched 2 | . 2 . Investigation . | . . . Extermination . | . . . Reinforcement 2 | . 2 . Assault . | . . . Garrison . | . . . Intercept . | . . . Searches Triggered . | . . . Construction Impeded . | . . . Haulers Reinforced . | . . . Active Scanning Responses . | . . . Cargo Convoy Interrupts . | . . . Stealth | -11 -10 -10 --------- Run | Yrd Mat Sub Distress Signals 2 | . 2 . Communications Jammed . | . . . Distress Signals . | . . . Times Spotted 36 | . 32 4 Peak Tracking Total 5 | . 5 2 Tactical Retreats 3 | . 3 . Traps | -11 -10 -10 ------- Run | Yrd Mat Sub Traps Triggered 1 | . 1 . Indirectly . | . . . Trap Hack Attempts . | . . . Triggered . | . . . Disarmed . | . . . Reprogrammed . | . . . Reused . | . . . Traps Extracted . | . . . Installed . | . . . Triggered . | . . . Machines | -11 -10 -10 ---------- Run | Yrd Mat Sub Machines Disabled 1 | . 1 . Max in Single Turn 1 | . 1 . Machines Repaired . | . . . Machines Dismantled . | . . . Machines Sabotaged . | . . . Overloaded Fab Kills . | . . . Hacking | -11 -10 -10 --------- Run | Yrd Mat Sub Machines Accessed 1 | . 1 . Terminals 1 | . 1 . Fabricators . | . . . Repair Stations . | . . . Recycling Units . | . . . Scanalyzers . | . . . Garrison Access . | . . . Total Hacks 3 | . 3 . Successful 2 | . 2 . Failed 1 | . 1 . Catastrophic . | . . . Database Lockouts . | . . . Manual . | . . . Terminals 3 | . 3 . Fabricators . | . . . Repair Stations . | . . . Recycling Units . | . . . Scanalyzers . | . . . Garrison Access . | . . . Terminal Hacks 2 | . 2 . Record 1 | . 1 . Prototype ID Bank 1 | . 1 . Fabricator Hacks . | . . . Repair Station Hacks . | . . . Recycling Unit Hacks . | . . . Scanalyzer . | . . . Garrison Access Hacks . | . . . Unauthorized Hacks . | . . . Terminals . | . . . Fabricators . | . . . Repair Stations . | . . . Recycling Units . | . . . Scanalyzers . | . . . Garrison Access . | . . . Data Cores Recovered . | . . . Used . | . . . Hacking Detections 1 | . 1 . Full Trace Events . | . . . Feedback Events . | . . . Feedback Blocked . | . . . Robot Schematics Acquired . | . . . Robots Built . | . . . Authchips . | . . . Time . | . . . Total Robot Build Rating . | . . . Part Schematics Acquired . | . . . Parts Built . | . . . Authchips . | . . . Time . | . . . Total Part Build Rating . | . . . Parts Repaired . | . . . Time . | . . . Parts Recycled . | . . . Recycled Matter . | . . . Retrieved Matter . | . . . Retrieved Components . | . . . Parts Scanalyzed . | . . . Part Schematics Acquired . | . . . Parts Damaged . | . . . Bothacking | -11 -10 -10 ------------ Run | Yrd Mat Sub Used RIF Installer . | . . . Robots Hacked 4 | . 3 1 Non-combat 4 | . 3 1 Combat . | . . . Robot Hacks Applied 6 | . 5 1 parse_system 5 | . 4 1 no_distress 1 | . 1 . Relay Couplers Released . | . . . Fabnet Peak Effective % . | . . . Robots Rewired . | . . . Allies Hacked . | . . . Hacks Repelled . | . . . Allies | -11 -10 -10 -------- Run | Yrd Mat Sub Total Allies . | . . . Largest Group . | . . . Highest-Rated Group . | . . . Highest-Rated Ally . | . . . Total Orders . | . . . Ally Attacks . | . . . Total Damage . | . . . Kills . | . . . Allies Corrupted . | . . . Allies Melted . | . . . Intel | -11 -10 -10 ------- Run | Yrd Mat Sub Active Infowar (turns) 2528 | . 1534 994 Optics 2476 | . 1482 994 ECM 305 | . 305 . Robot Analysis Total . | . . . Derelict Logs Recovered . | . . . Drone Launches . | . . . Drone Recoveries . | . . . Exploration | -11 -10 -10 ------------- Run | Yrd Mat Sub Turns Passed 2938 | 88 1856 994 Spaces Moved 960 | 56 595 309 Core 304 | 17 . 287 Treads 656 | 39 595 22 Legs . | . . . Wheels . | . . . Hover . | . . . Flight . | . . . Fastest Speed 50 | 50 160 100 Average Speed 174 | 126 160 209 Slowest Speed 300 | 160 160 300 Overloaded Moves . | . . . Propulsion Burnouts . | . . . Robots Hopped . | . . . Potential Cave-ins . | . . . Cave-ins Triggered . | . . . Exploration Rate (%) 31 | 3 74 17 Regions Visited 2 Branch Regions 1 Pre-discovered Areas . | . . . Known Exits Taken . | . . . Unknown Exits Taken 2 | 1 1 . Scrap Searched . | . . . Spaces Dug . | . . . Terrain Destroyed . | . . . Melee . | . . . Projectile . | . . . AOE . | . . . Terrain Rammed . | . . . Walls Destroyed . | . . . Machines Disabled . | . . . Actions | -11 -10 -10 --------- Run | Yrd Mat Sub Total 2086 | 73 1398 615 Wait 1007 | 9 730 268 Move 958 | 55 594 309 Hop . | . . . Pick Up 15 | 5 6 4 Fast Attach . | . . . Attach 11 | 4 3 4 Detach 1 | . . 1 Swap 7 | . 6 1 Drop 2 | . . 2 Fire 72 | . 48 24 Melee 12 | . 10 2 Ram . | . . . Kick . | . . . Crush 1 | . 1 . Escape Stasis . | . . . Rewire . | . . . Trap . | . . . Miscellaneous . | . . . Route ------- -11/Scrapyard -10/Materials (discovered 4 exits: [*Mat x2] / [*Min] / [*Sub]) -10/Subcaves History --------- Turn | Location | Event 8 | -11/Scrapyard | Discovered new exit (range 16) 89 | -11/Scrapyard | Entered Materials 335 | -10/Materials | Build established: Mutant 366 | -10/Materials | Discovered new exit (range 6) 490 | -10/Materials | Discovered new exit (range 18) 1189 | -10/Materials | Derelicts attacked the area 1578 | -10/Materials | Discovered new exit (range 17) 1875 | -10/Materials | Discovered new exit (range 7) 1945 | -10/Materials | Entered Subcaves 1946 | -10/Subcaves | Approached by a straggling Scientist 1990 | -10/Subcaves | Core integrity fell below 50% 2826 | -10/Subcaves | Shifting Twisted Machinery released Flamer 2934 | -10/Subcaves | Core integrity fell below 20% 2939 | -10/Subcaves | Destroyed by JX-8SL(R) with Subdweller Machine Gun Last Messages --------------- Sneak attack on CT-KWD(c). Jacked CT-KWD(c)... >>parse_system Reading system data... CT-KWD(c): "I think it's somewhere east of here" 6U-8CR(u) deconstructs Twisted Machinery. 2EQ SCTF=HN6Z34N9IL#GMV6 YS= Flamer falls loose from the Twisted Machinery. CT-KWD(c): "I think it's somewhere southeast of here" Acquired Flamer. System corrupted: IFF burst signal emitted. CT-KWD(c): "I think it's somewhere southeast of here" Spread Laser destroyed. TK-M62(R) destroyed. Subatomizers dissect the Sub. Monowheel. Map ----- +----------------------------------------------------+ | ?????????????????????????????????????????????????? | | ?????????????????????????????????????????????????? | | ?????????????????????????????????????????????????? | | ?????????????????????????????????????????????????? | | ?????????????????????????????????????????????????? | | ?????????????????????????????????????????????????? | | ?????????????????????????????????????????????????? | | ?????????????????????????????????????????????????? | | ?????????????????????????????????????????????????? | | ?????????????????????????????????????????????????? | | ?????????????????????????????????????????????????? | | ?????????????????????????????????????????????????? | | ?????????????????????????????????????????????????? | | ?????????????????????????????????????????????????? | | ?????????????????????????????????????????????????? | | ???????????????# ???????????????????????????????? | | ??????????????# #?????????????????????????????? | | ????????###### ?##??????????????????????????? | | ???????## "" #??????????????????????????? | | ???????# """"""" #??????????????????????????? | | ???????# """"""" ???????????????????????????? | | ?####???# "" "???????##???????????????????? | | ## ##### "#??????#### #???????????????????? | | #???###?## " ##??????????????????? | | #####"### "# """"????????????? | | ## @ R " """???????????? | | # ## c =%" "" " ??????????? | | ### " ### *&""" ???????????? | | ## "" #?####### "" ???????????? | | # """"" "" #????????? " ??????????????? | | # """""" """ #?????????? " #?????????????? | | # """"""""" ##??????????? ""#?????????????? | | # """"#????????????? "#?????????????? | | # ##""""""## ??????????????"?????????????? | | ## """###"""""" ??????????????????????????? | | ### ##?#"""""" ??????????????????????????? | | ###?####??? ????????????????????????????? | | ##???###???? ######????????????????????????????? | | #???## #####???????????????????????????????????? | | ##??# ##??????????????????????????????????? | | #??# #??????????????????????????????????? | | #?## ##??????????????????????????????????? | | ### #???????????????????????????????????? | | ### % #???????????????????????????????????? | | ## #?## ##???????????????????????????????????? | | ## #### ##????????????????????????????????????? | | ?# ## #?????????????????????????????????????? | | ?# % #?????????????????????????????????????? | | ?# #?????????????????????????????????????? | | ?## #????????????????????????????????????? | +----------------------------------------------------+ Best States ------------- Heat Dissipation 25 Energy Generation 15 Energy Capacity 250 Matter Stores 300 Matter Capacity 300 Sight Range 18 Terrain Scan Density 10 ECM Strength 1 Evasion (%) 50 Recoil Reduction 2 Item Schematics ----------------- None Robot Schematics ------------------ None Fabricated ------------ Nothing Repaired ---------- Nothing Alien Tech Used ----------------- None Achievements -------------- None Challenges ------------ None Game ------ Seed ElectrostormArmorBoregun Manual? 0 Play Time 00:17:23 Cumulative 35.8 hours Start 2025.07.03 @ 08:23:40 End 2025.07.03 @ 08:40:42 Sessions 1 Manual Loads 0 Difficulty Rogue Special Mode None Game No. 172 Rogue 172 Adventurer 0 Explorer 0 Win Type - Total 0 Types 0/0/0/0/0/0/0/0/0/0 Lore% 22 Gallery% 23 Achievement% 19 Wizard Run 0 Options --------- Layout 2 ASCII 0 Keyboard 0 Movement Mouse Keybinds 0 Fullscreen 2 Font 24/Smallcaps Map View 50x44 Zoom Use 0% Tactical HUD 0 Map Filters NONE Filters NONE Steam 1 RUN: 34630434-7b3e-49b8-b01e-54fd2f932d6b